{"text_format":"1","workbook":"xlsx","n_sheets":7,"sheets":["Instructions","Company Profile","Gasoline and its Substitutes","data","CI_lookup","CI Lookup Table","Diesel and its Substitutes"],"not_rendered":{"charts":0,"images":1,"macros":1,"external_links":0,"defined_names":21,"comments":0,"pivot_tables":0},"unopened":[],"bounds":{"document_bytes":16777216,"sheet_cells":100000,"rows_first":2000,"rows_last":500,"rows_between":2000,"halvings":0,"cell_chars":16384,"cell_head_chars":4096},"cells_cut":0,"cells_raw":0,"read":"whole","date_system":"1900"}

{"sheet":"Instructions","index":0,"n_rows":20,"n_cols":3,"rows_kept":20,"cut":false,"hidden":false,"merged":[[7,2,7,3],[17,2,17,3],[18,2,18,3],[19,2,19,3],[1,2,1,3],[3,2,3,3],[4,2,4,3],[5,2,5,3],[6,2,6,3],[11,2,11,3],[13,2,13,3],[14,2,14,3],[15,2,15,3],[16,2,16,3],[10,2,10,3],[12,2,12,3]]}
[]
[null,null,"Oregon Department of Environmental Quality \nOregon Clean Fuels Program\nRegistration Form"]
[]
[null,null,"Who must register:\nImporters of gasoline, diesel, ethanol and diesel for use in Oregon are required to register. Oregon producers of ethanol and biodiesel are also required to register. \n"]
[null,null,"Purpose of the Registration Form:\nThe purpose of this form is to facilitate the registration process for parties regulated by the program. Use of this form is not required; any format can be used as long as the information contained in OAR 340-253-0500 is submitted to ODEQ. For the registration process, the following information needs to be provided to ODEQ: company identification and a description of the fuel type(s) supplied to Oregon, information about the producer of the fuel(s) and proposal of carbon intensity (CI) value(s)."]
[null,null,"If you choose to use this registration form, it should be used to register a single importer/producer and include all the fuel types (any unique fuel feedstock and production process combination) supplied in Oregon. If additional documentation needs to be submitted, such as fuel types that are not included in the form or material to document a proposal for an individual carbon intensity, please attach it to this form. \n"]
[null,null,"Using the Registration Form: \nWhen you first open the worksheet, there will be a display at the top that says “Security Warning Macros have been disabled.” Click on the button that says “Options.” A window will pop up. Click on the bottom circle that says “Enable this content” and then click “OK”. The worksheet is now ready to use.\nThe form contains four sections, and can be found as tabs at the bottom of the worksheet:\n     1. The “Instructions” tab contains general information and instructions on how to use the registration form. \n    2. The \"Company Profile\" tab is used to submit information about the company that is registering.\n          a. Section 2.1 - Company Information\n          b. Section 2.2 - Primary Contact: This is the first person that DEQ will contact if there are any questions about the information contained in the registration form.\n          c. Section 2.3 – Legal Contact: This must be a person with signatory authority for the company.\n          d. Legal Responsibility: A copy of the Registration Form must be submitted to DEQ with the Primary Contact’s original signature.\n          e. Section 2.4 – Regulated Party Status: Check the appropriate box.\n     3. The “Gasoline and its Substitutes” tab is used to submit information about gasoline and gasoline substitutes currently supplied in Oregon. \n          a. For Sections 3.1 through 3.8, click either “Yes” or “No”.\n               i. If you click “Yes”, then:\n                    1. A statewide carbon intensity value or a carbon intensity value for an established pathway found in OAR 340-253-3010 or -3020 will automatically appear on the next line.\n                    2. If this value does not reflect the estimated carbon intensity for that fuel type, then enter your proposal for an individual carbon intensity value in the box to the right. Note that OAR 340-253-0400(3)(b)(A) only allows for individual carbon intensity values to be proposed if, when compared to OAR 340-253-3010 or -3020, the carbon intensity changes by at least 5.0 gCO2e/MJ or 10 percent.\n                    3. Enter the number of gallons of this fuel type that was imported/produced for use in Oregon for the previous calendar year, if this value is available.\n                    4. Click on one or more of the physical pathways (PH1 through PH7) that apply to importing this fuel type to Oregon. If you select PH7, please include a description and supporting documentation for the physical pathway.\n                    5. Enter the name(s) and physical location(s) of the producer(s) of this fuel type.\n               ii. If you click “No”, then continue to the next sub-section.\n              iii. Repeat this process for all fuel types that appear in Sections 3.2 through 3.8. "]
[null,null,"          b. If you are registering a gasoline substitute that is not represented in Sections 3.2 through 3.8, please describe it in Section 3.9 and submit all supporting documentation with the form."]
[]
[]
[null,null,"Oregon Department of Environmental Quality Clean Fuels Program\nRegistration Form (page 2)"]
[null,null,"        4. The “Diesel and its Substitutes” tab is used to submit information about diesel and diesel substitutes currently supplied in Oregon. Follow the steps in 3.      "]
[null,null,"Saving the File:\nWhen you are done filling out the form, “Save as” an Excel Macro-Enabled Workbook in the following naming format:\n          [CompanyName]_CFP_InitialRegistration.xlsm\nFor example: DEQ_CFP_InitialRegistration.xlsm\n"]
[null,null,"Submitting the Registration Form: \nSubmittal of the Registration Form must be done in 2 parts:\n     1. E-mail submittal of the registration form and attachments to OregonCleanFuels@deq.state.or.us; and\n     2. Hard copy submittal of the registration form and  attachments, including an original signature to:\n               Oregon Department of Environmental Quality\n               Attn: Oregon Clean Fuels Program\n               811 SW 6th Avenue\n               Portland, OR 97204\n"]
[null,null,"Registration Approval:\nODEQ will notify the regulated party in writing when the information contained in the registration form is reviewed and approved.\n"]
[null,null,"Modifications to the Registration Form:\nThe following are types of changes that require resubmission of the registration form:\n     • Any changes to the Company Profile\n     • Any new fuel type that you propose to supply in Oregon that has not already been approved\n     • Any changes regarding the producer(s) of the fuel type\n     • Any changes that impact a fuel type’s carbon intensity value that has already been approved by DEQ\nThe registration form must be submitted within 30 days of any change to the information above.\n"]
[null,null,"Information on the Web:\nODEQ will post the following information on the Clean Fuels Program website:\n     • Importer/Producer name\n     • Fuel type(s) supplied in Oregon\n     • Carbon Intensity (CI) value(s) of those fuels\nAll information that meets the criteria to be treated as “business confidential” will not be released to the public.  \n"]
[null,null,"Reporting Tool:\nODEQ is working to develop a separate Reporting Tool. The information submitted during the registration process will be used to develop the Reporting Tool. ODEQ plans to integrate this registration process into the Reporting Tool in the future, but this Excel form will be used in the interim.\n"]
[null,null,"Out-of-state Producers:\nThe program rules do not currently allow out-of-state biofuels producers to register if they are not Oregon producers or importers.\n"]
[null,null,"Oregon Clean Fuels Program Contact Information:\nAny questions about the Oregon Clean Fuels Program should be directed to:\n     Cory-Ann Wind\n     OregonCleanFuels@deq.state.or.us \n     (503) 229-5388 (phone)\n"]

{"sheet":"Company Profile","index":1,"n_rows":65,"n_cols":14,"rows_kept":65,"cut":false,"hidden":false,"merged":[[52,0,56,0],[57,0,65,0],[21,0,51,0],[23,2,23,6],[26,2,26,6],[29,2,29,6],[32,2,32,6],[35,5,35,6],[38,5,38,6],[41,2,41,4],[44,2,44,4],[47,2,47,4],[35,2,35,3],[38,2,38,3],[50,2,50,6],[2,0,20,0],[4,2,4,6],[7,5,7,6],[13,5,13,6],[16,5,16,6],[19,2,19,6],[7,2,7,3],[13,2,13,3],[16,2,16,3],[10,2,10,6],[50,10,50,14],[2,8,20,8],[4,10,4,14],[7,10,7,11],[7,13,7,14],[10,10,10,14],[13,10,13,11],[13,13,13,14],[16,10,16,11],[16,13,16,14],[19,10,19,14],[1,1,1,15],[0,1,0,15],[55,2,56,15],[52,1,54,15],[21,8,51,8],[23,10,23,14],[26,10,26,14],[29,10,29,14],[32,10,32,14],[35,10,35,11],[35,13,35,14],[38,10,38,11],[38,13,38,14],[41,10,41,12],[44,10,44,12],[47,10,47,12]]}
[null,"Oregon Department of Environmental Quality \nOregon Clean Fuels Program\nRegistration Form\n"]
[null,"Section 2. Company Profile"]
["SECTION 2.1 - COMPANY INFORMATION"]
[null,null,"Company Name"]
[null,null,"Powell Christensen Inc. DBA Ameristar #4"]
[]
[null,null,"ODEQ Facility ID (if available)",null,null,"EPA RFS2 ID (if available)"]
[null,null,"044578 "]
[]
[null,null,"Physical Address",null,null,null,null,null,null,null,"Mailing Address"]
[null,null,"1580 Highland Road",null,null,null,null,null,null,null,"PO Box 98"]
[]
[null,null,"City",null,null,"State",null,null,null,null,"City",null,null,"State"]
[null,null,"Hermiston",null,null,"Oregon",null,null,null,null,"Grandview",null,null,"WA"]
[]
[null,null,"Zip Code (or International Postal Code)",null,null,"Country",null,null,null,null,"Zip Code (or International Postal Code)",null,null,"Country"]
[null,null,98938,null,null,"Umatilla",null,null,null,null,98930,null,null,"Yakima"]
[]
[null,null,"Company Webpage"]
[]
[]
["SECTION 2.2 - PRIMARY CONTACT INFORMATION",null,null,null,null,null,null,null,"SECTION 2.3 - LEGAL CONTACT INFORMATION"]
[null,null,"First Name",null,null,null,null,null,null,null,"First Name"]
[null,null,"Thomas",null,null,null,null,null,null,null,"William"]
[]
[null,null,"Last Name",null,null,null,null,null,null,null,"Last Name"]
[null,null,"Richwine",null,null,null,null,null,null,null,"Betterton"]
[]
[null,null,"Title",null,null,null,null,null,null,null,"Title"]
[null,null,"HR/ Compliance Manager",null,null,null,null,null,null,null,"CFO / General Manager"]
[]
[null,null,"Mailing Address (if different than then mailing address above)",null,null,null,null,null,null,null,"Mailing Address (if different than then mailing address above)"]
[null,null,"PO Box 98"]
[]
[null,null,"City",null,null,"State",null,null,null,null,"City",null,null,"State"]
[null,null,"Grandview",null,null,"WA"]
[]
[null,null,"Zip Code (or International Postal Code)",null,null,"Country",null,null,null,null,"Zip Code (or International Postal Code)",null,null,"Country"]
[null,null,"98930-0098",null,null,"Yakima"]
[]
[null,null,"Business Phone Number (Enter as 123-456-7869 unless International)",null,null,null,null,null,null,null,"Business Phone Number (Enter as 123-456-7869 unless International)"]
[null,null,"509-203-6917",null,null,null,null,null,null,null,"509-203-6912"]
[]
[null,null,"Mobile PhoneNumber  (Enter as 123-456-7869 unless International)",null,null,null,null,null,null,null,"Mobile PhoneNumber  (Enter as 123-456-7869 unless International)"]
[null,null,"509-830-4914",null,null,null,null,null,null,null,"509-830-3707"]
[]
[null,null,"Fax Number (Enter as 123-456-7869 unless International)",null,null,null,null,null,null,null,"Fax Number (Enter as 123-456-7869 unless International)"]
[null,null,"509-203-6917",null,null,null,null,null,null,null,"509-830-6992"]
[]
[null,null,"E-mail Address",null,null,null,null,null,null,null,"E-mail Address"]
[null,null,"tom.richwine@repowell.net",null,null,null,null,null,null,null,"bill.betterton@repowell.net"]
[]
["SECTION 2.3","Section 2.3. Legal Responsibility"]
[]
[]
[null,null,"I, Thomas B Richwine, as person with Signatory Authority, am submitting this form on behalf of Powell Christensen Inc. (Company Name), with the understanding that this information will be used by the Oregon Department of Environmental Quality for purposes of compliance with the Clean Fuels Program regulation. The data and statements in this document and any attachments are based upon the best available information and comply with OAR Chapter 340 Division 253 reporting requirements.  "]
[]
["SECTION 2.4"]
[null,null,"Section 2.4 Regulated Party Status"]
[]
[null,null,"I am registering as a(n):",null,"Large Importer"]
[]
[null,null,null,null,"Small Importer"]
[]
[null,null,null,null,"Oregon Producer"]

{"sheet":"Gasoline and its Substitutes","index":2,"n_rows":82,"n_cols":10,"rows_kept":82,"cut":false,"hidden":false,"merged":[[7,8,7,9],[22,2,22,4],[17,8,17,9],[66,8,66,9],[24,2,24,3],[24,6,24,7],[32,2,32,4],[15,2,15,3],[44,6,44,7],[26,8,26,9],[13,2,13,4],[30,2,30,5],[15,6,15,7],[46,8,46,9],[56,8,56,9],[36,8,36,9],[81,0,83,0],[2,0,11,0],[3,2,3,4],[18,2,18,6],[28,2,28,6],[5,2,5,3],[5,6,5,7],[54,2,54,3],[54,6,54,7],[38,2,38,6],[39,3,39,8],[29,3,29,8],[19,3,19,8],[42,2,42,3],[34,2,34,3],[34,6,34,7],[59,3,59,8],[83,2,83,8],[81,2,81,8],[9,2,9,6],[40,2,40,5],[44,2,44,3],[48,2,48,6],[58,2,58,6],[68,2,68,6],[62,2,62,4],[64,2,64,3],[64,6,64,7],[60,2,60,5],[50,2,50,5],[52,2,52,4],[49,3,49,8],[76,8,76,9],[78,2,78,6],[80,2,80,5],[79,3,79,8],[69,3,69,8],[7,2,7,3],[7,6,7,7],[0,1,0,9],[82,2,82,8],[12,0,20,0],[21,0,30,0],[31,0,40,0],[41,0,50,0],[51,0,60,0],[61,0,70,0],[71,0,80,0],[10,3,10,8],[70,2,70,5],[72,2,72,4],[74,2,74,3],[74,6,74,7]]}
[null,"Oregon Department of Environmental Quality \nOregon Clean Fuels Program\nRegistration Form\n"]
[null,null,"Section 3. Gasoline and its Substitutes"]
["SECTION 3.1"]
[null,null,"Do you import/produce gasoline?"]
[]
[null,null,"This is the default carbon intensity.",null,{"$f":"'CI Lookup Table'!B2","v":92.34},"gCO2e/MJ"]
[]
[null,null,"If available, how much did you import/produce last year? (in gallons)",null,1000008,"Gallons"]
[]
[null,null,"                                                                                                                                                                                                                                                                                              Select a physical pathway category that best matches the transportation route for the fuel. "]
[null,null,"Please list the producer(s) of the fuel:","Chevron"]
[]
["SECTION 3.2"]
[null,null,"Do you import/produce corn ethanol (GREET default)?"]
[]
[null,null,"If yes, is this default carbon intensity appropriate?",null,"N/A","gCO2e/MJ","If not, then what carbon intensity do you propose? Please attach all supporting documentation to this file.",null,null,"gCO2e/MJ"]
[]
[null,null,"If available, how much did you import/produce last year? (in gallons)",null,"N/A","Gallons"]
[null,null,"                                                                                                                                                                                                                                                                                              Select a physical pathway category that best matches the transportation route for the fuel. "]
[null,null,"Please list the producer(s) of the fuel:"]
[]
["SECTION 3.3"]
[null,null,"Do you import/produce corn ethanol (wet mill, natural gas)?"]
[]
[null,null,"If yes, is this default carbon intensity appropriate?",null,"N/A","gCO2e/MJ","If not, then what carbon intensity do you propose? Please attach all supporting documentation to this file.",null,null,"gCO2e/MJ"]
[]
[null,null,"If available, how much did you import/produce last year? (in gallons)",null,"N/A","Gallons"]
[]
[null,null,"                                                                                                                                                                                                                                                                                              Select a physical pathway category that best matches the transportation route for the fuel. "]
[null,null,"Please list the producer(s) of the fuel:"]
[]
["SECTION 3.4"]
[null,null,"Do you import/produce corn ethanol (wet mill, coal)?"]
[]
[null,null,"If yes, is this default carbon intensity appropriate?",null,"N/A","gCO2e/MJ","If not, then what carbon intensity do you propose? Please attach all supporting documentation to this file.",null,null,"gCO2e/MJ"]
[]
[null,null,"If available, how much did you import/produce last year? (in gallons)",null,"N/A","Gallons"]
[]
[null,null,"                                                                                                                                                                                                                                                                                              Select a physical pathway category that best matches the transportation route for the fuel. "]
[null,null,"Please list the producer(s) of the fuel:"]
[]
["SECTION 3.5"]
[null,null,"Do you import/produce corn ethanol (dry mill, wet DGS, natural gas)?"]
[]
[null,null,"If yes, is this default carbon intensity appropriate?",null,"N/A","gCO2e/MJ","If not, then what carbon intensity do you propose? Please attach all supporting documentation to this file.",null,null,"gCO2e/MJ"]
[]
[null,null,"If available, how much did you import/produce last year? (in gallons)",null,"N/A","Gallons"]
[]
[null,null,"                                                                                                                                                                                                                                                                                              Select a physical pathway category that best matches the transportation route for the fuel. "]
[null,null,"Please list the producer(s) of the fuel:"]
[]
["SECTION 3.6"]
[null,null,"Do you import/produce sugarcane ethanol?"]
[]
[null,null,"If yes, is this default carbon intensity appropriate?",null,"N/A","gCO2e/MJ","If not, then what carbon intensity do you propose? Please attach all supporting documentation to this file.",null,null,"gCO2e/MJ"]
[]
[null,null,"If available, how much did you import/produce last year? (in gallons)",null,"N/A","Gallons"]
[]
[null,null,"                                                                                                                                                                                                                                                                                              Select a physical pathway category that best matches the transportation route for the fuel. "]
[null,null,"Please list the producer(s) of the fuel:"]
[]
["SECTION 3.7"]
[null,null,"Do you import/produce farmed tree cellulosic ethanol?"]
[]
[null,null,"If yes, is this default carbon intensity appropriate?",null,"N/A","gCO2e/MJ","If not, then what carbon intensity do you propose? Please attach all supporting documentation to this file.",null,null,"gCO2e/MJ"]
[]
[null,null,"If available, how much did you import/produce last year? (in gallons)",null,"N/A","Gallons"]
[]
[null,null,"                                                                                                                                                                                                                                                                                              Select a physical pathway category that best matches the transportation route for the fuel. "]
[null,null,"Please list the producer(s) of the fuel:"]
[]
["SECTION 3.8"]
[null,null,"Do you import/produce wheat straw cellulosic ethanol?"]
[]
[null,null,"If yes, is this default carbon intensity appropriate?",null,"N/A","gCO2e/MJ","If not, then what carbon intensity do you propose? Please attach all supporting documentation to this file.",null,null,"gCO2e/MJ"]
[]
[null,null,"If available, how much did you import/produce last year? (in gallons)",null,"N/A","Gallons"]
[]
[null,null,"                                                                                                                                                                                                                                                                                              Select a physical pathway category that best matches the transportation route for the fuel. "]
[null,null,"Please list the producer(s) of the fuel:"]
[]
["SECTION 3.9",null,"Do you import/produce other gasoline substitutes? Please describe each and include the proposed carbon intensity and the producer of the fuel. Please attach all applicable supporting documentation for the proposed carbon intensity."]

{"sheet":"data","index":3,"n_rows":244,"n_cols":14,"rows_kept":244,"cut":false,"hidden":true,"merged":[]}
["country","state_cd","state_nm"]
["United States","AK","Alaska",null,null,null,null,null,null,null,"List of General Physical Pathways ",null,null,"Physical pathway options"]
["Afghanistan","AZ","Arizona",null,null,null,null,null,null,null,null,"prefix","Phy Descrip",{"$f":"IF('Gasoline and its Substitutes'!#REF!=\"Corn from U.S. Mid-West\",M4,IF('Gasoline and its Substitutes'!#REF!=\"Surgarcane from Brazil\",M6,IF('Gasoline and its Substitutes'!#REF!=\"Biomass-Based Diesel\",M11,\"\")))","v":{"$error":"#REF!"}}]
["Albania","AR","Arkansas",null,null,null,null,null,null,null,"Midwest Corn Ethanol: ethanol transported to California by rail – UP","PHY01",{"$f":"CONCATENATE(L4, \" - \",K4)","v":"PHY01 - Midwest Corn Ethanol: ethanol transported to California by rail – UP"},{"$f":"IF('Gasoline and its Substitutes'!#REF!=\"Corn from U.S. Mid-West\",M5,IF('Gasoline and its Substitutes'!#REF!=\"Surgarcane from Brazil\",M7,IF('Gasoline and its Substitutes'!#REF!=\"Biomass-Based Diesel\",M12,\"\")))","v":{"$error":"#REF!"}}]
["Algeria","CA","California",null,null,null,null,null,null,null,"Midwest Corn Ethanol: ethanol transported to California by rail – BNSF","PHY02","PHY02 - Midwest Corn Ethanol: ethanol transported to California by rail – BNSF",{"$f":"IF('Gasoline and its Substitutes'!#REF!=\"Corn from U.S. Mid-West\",M17,IF('Gasoline and its Substitutes'!#REF!=\"Surgarcane from Brazil\",M8,IF('Gasoline and its Substitutes'!#REF!=\"Biomass-Based Diesel\",M13,\"\")))","v":{"$error":"#REF!"}}]
["American Samoa","CO","Colorado",null,null,null,null,null,null,null,"Brazilian Sugarcane Ethanol: ethanol transported from Brazil to Texas by ocean tanker, and to California by rail – UP","PHY03","PHY03 - Brazilian Sugarcane Ethanol: ethanol transported from Brazil to Texas by ocean tanker, and to California by rail – UP",{"$f":"IF('Gasoline and its Substitutes'!#REF!=\"Corn from U.S. Mid-West\",\"\",IF('Gasoline and its Substitutes'!#REF!=\"Surgarcane from Brazil\",M9,IF('Gasoline and its Substitutes'!#REF!=\"Biomass-Based Diesel\",M14,\"\")))","v":{"$error":"#REF!"}}]
["Andorra","CT","Connecticut",null,null,null,null,null,null,null,"Brazilian Sugarcane Ethanol: ethanol transported from Brazil to Texas by ocean tanker, and to California by rail – BNSF","PHY04","PHY04 - Brazilian Sugarcane Ethanol: ethanol transported from Brazil to Texas by ocean tanker, and to California by rail – BNSF",{"$f":"IF('Gasoline and its Substitutes'!#REF!=\"Corn from U.S. Mid-West\",\"\",IF('Gasoline and its Substitutes'!#REF!=\"Surgarcane from Brazil\",M10,IF('Gasoline and its Substitutes'!#REF!=\"Biomass-Based Diesel\",M15,\"\")))","v":{"$error":"#REF!"}}]
[null,null,null,null,null,null,null,null,null,null,"Brazilian Sugarcane Ethanol: ethanol transported from Brazil to California ports","PHY05","PHY05 - Brazilian Sugarcane Ethanol: ethanol transported from Brazil to California ports",{"$f":"IF('Gasoline and its Substitutes'!#REF!=\"Corn from U.S. Mid-West\",\"\",IF('Gasoline and its Substitutes'!#REF!=\"Surgarcane from Brazil\",M17,IF('Gasoline and its Substitutes'!#REF!=\"Biomass-Based Diesel\",M16,\"\")))","v":{"$error":"#REF!"}}]
["Anguilla","DE","Delaware",null,null,null,null,null,null,null,"Brazilian Sugarcane Ethanol: ethanol transported from Brazil to other US ports, and to California by rail – UP","PHY06","PHY06 - Brazilian Sugarcane Ethanol: ethanol transported from Brazil to other US ports, and to California by rail – UP",{"$f":"IF('Gasoline and its Substitutes'!#REF!=\"Corn from U.S. Mid-West\",\"\",IF('Gasoline and its Substitutes'!#REF!=\"Surgarcane from Brazil\",\"\",IF('Gasoline and its Substitutes'!#REF!=\"Biomass-Based Diesel\",M17,\"\")))","v":{"$error":"#REF!"}}]
["Antarctica","DC","District Of Columbia",null,null,null,null,null,null,null,"Brazilian Sugarcane Ethanol: ethanol transported from Brazil to other US ports, and to California by rail – BNSF","PHY07","PHY07 - Brazilian Sugarcane Ethanol: ethanol transported from Brazil to other US ports, and to California by rail – BNSF"]
["Antigua And Barbuda","FL","Florida",null,null,null,null,null,null,null,"California Biodiesel: transported within California by truck","PHY08","PHY08 - California Biodiesel: transported within California by truck"]
["Argentina","GA","Georgia",null,null,null,null,null,null,null,"US Biodiesel: transported to California by rail - UP","PHY09","PHY09 - US Biodiesel: transported to California by rail - UP"]
["Armenia","HI","Hawaii",null,null,null,null,null,null,null,"US Biodiesel: transported to California by rail - BNSF","PHY10","PHY10 - US Biodiesel: transported to California by rail - BNSF"]
["Aruba","ID","Idaho",null,null,null,null,null,null,null,"California Renewable Diesel: transported within California by truck","PHY11","PHY11 - California Renewable Diesel: transported within California by truck"]
["Australia","IL","Illinois",null,null,null,null,null,null,null,"US Renewable Diesel: transported to California by rail - UP","PHY12","PHY12 - US Renewable Diesel: transported to California by rail - UP"]
["Austria","IN","Indiana",null,null,null,null,null,null,null,"US Renewable Diesel: transported to California by rail - BNSF","PHY13","PHY13 - US Renewable Diesel: transported to California by rail - BNSF"]
["Azerbaijan","IA","Iowa",null,null,null,null,null,null,null,"Others","PHY00","PHY00 - Others"]
["Bahamas","KS","Kansas"]
["Bahrain","KY","Kentucky"]
["Bangladesh","LA","Louisiana"]
["Barbados","ME","Maine",null,null,null,null,null,null,null,null,"PHY01","Fuel produced in California",{"$f":"CONCATENATE(L21, \" - \",M21)","v":"PHY01 - Fuel produced in California"}]
["Belarus","MD","Maryland",null,null,null,null,null,null,null,null,"PHY02","By rail from US to California",{"$f":"CONCATENATE(L22, \" - \",M22)","v":"PHY02 - By rail from US to California"}]
["Belgium","MA","Massachusetts",null,null,null,null,null,null,null,null,"PHY03","By ocean tanker from Brazil to US, then by rail to California","PHY03 - By ocean tanker from Brazil to US, then by rail to California"]
["Belize","MI","Michigan",null,null,null,null,null,null,null,null,"PHY04","By ocean tanker from Brazil to countries covered by Caribbean Basin Initiative, and by ocean tanker to US, then by rail to California","PHY04 - By ocean tanker from Brazil to countries covered by Caribbean Basin Initiative, and by ocean tanker to US, then by rail to California"]
["Benin","MN","Minnesota",null,null,null,null,null,null,null,null,"PHY05","By ocean tanker from Malaysia to US, then by rail to California","PHY05 - By ocean tanker from Malaysia to US, then by rail to California"]
["Bermuda","MS","Mississippi",null,null,null,null,null,null,null,null,"PHY06","By ocean tanker from Indonesia to US, then by rail to California","PHY06 - By ocean tanker from Indonesia to US, then by rail to California"]
["Bhutan","MO","Missouri",null,null,null,null,null,null,null,null,"PHY07","By ocean tanker from other country to US, then by rail to California","PHY07 - By ocean tanker from other country to US, then by rail to California"]
["Bolivia","MT","Montana",null,null,null,null,null,null,null,null,"PHY08","By truck from US to California","PHY08 - By truck from US to California"]
["Bosnia and Herzegov","NE","Nebraska",null,null,null,null,null,null,null,null,"PHY09","By ocean tanker to Calfornia","PHY09 - By ocean tanker to Calfornia"]
["Botswana","NV","Nevada",null,null,null,null,null,null,null,null,"PHY00","Others","PHY00 - Others"]
["Bouvet Island","NH","New Hampshire"]
["Brazil","NJ","New Jersey"]
["British Indian Ocea","NM","New Mexico"]
["Brunei Darussalam","NY","New York"]
["Bulgaria","NC","North Carolina"]
["Burkina Faso","ND","North Dakota"]
["Burundi","OH","Ohio"]
["Cambodia","OK","Oklahoma"]
["Cameroon","OR","Oregon"]
["Canada","PA","Pennsylvania"]
["Cape Verde","RI","Rhode Island"]
["Cayman Islands","SC","South Carolina"]
["Central African Rep","SD","South Dakota"]
["Chad","TN","Tennessee"]
["Chile","TX","Texas"]
["China","UT","Utah"]
["Christmas Island","VT","Vermont"]
["Cocos (Keeling) Isl","VA","Virginia"]
["Colombia","WA","Washington"]
["Comoros","WV","West Virginia"]
["Congo","WI","Wisconsin"]
["\"Congo, the Democra","WY","Wyoming"]
["Cook Islands"]
["Costa Rica"]
["Cote d'Ivoire"]
["Croatia"]
["Cyprus"]
["Czech Republic"]
["Denmark"]
["Djibouti"]
["Dominica"]
["Dominican Republic"]
["East Timor"]
["Ecuador"]
["Egypt"]
["El Salvador"]
["England"]
["Equatorial Guinea"]
["Eritrea"]
["Espana"]
["Estonia"]
["Ethiopia"]
["Falkland Islands"]
["Faroe Islands"]
["Fiji"]
["Finland"]
["France"]
["French Guiana"]
["French Polynesia"]
["French Southern Ter"]
["Gabon"]
["Gambia"]
["Georgia"]
["Germany"]
["Ghana"]
["Gibraltar"]
["Great Britain"]
["Greece"]
["Greenland"]
["Grenada"]
["Guadeloupe"]
["Guam"]
["Guatemala"]
["Guinea"]
["Guinea-Bissau"]
["Guyana"]
["Haiti"]
["Heard and Mc Donald"]
["Honduras"]
["Hong Kong"]
["Hungary"]
["Iceland"]
["India"]
["Indonesia"]
["Ireland"]
["Israel"]
["Italy"]
["Jamaica"]
["Japan"]
["Jordan"]
["Kazakhstan"]
["Kenya"]
["Kiribati"]
["\"Korea, Republic of"]
["Korea (South)"]
["Kuwait"]
["Kyrgyzstan"]
["Lao People's Democr"]
["Latvia"]
["Lebanon"]
["Lesotho"]
["Liberia"]
["Libya"]
["Liechtenstein"]
["Lithuania"]
["Luxembourg"]
["Macau"]
["Macedonia"]
["Madagascar"]
["Malawi"]
["Malaysia"]
["Maldives"]
["Mali"]
["Malta"]
["Marshall Islands"]
["Martinique"]
["Mauritania"]
["Mauritius"]
["Mayotte"]
["Mexico"]
["\"Micronesia, Federa"]
["\"Moldova, Republic"]
["Monaco"]
["Mongolia"]
["Montserrat"]
["Morocco"]
["Mozambique"]
["Myanmar"]
["Namibia"]
["Nauru"]
["Nepal"]
["Netherlands"]
["Netherlands Antille"]
["New Caledonia"]
["New Zealand"]
["Nicaragua"]
["Niger"]
["Nigeria"]
["Niue"]
["Norfolk Island"]
["Northern Ireland"]
["Northern Mariana Is"]
["Norway"]
["Oman"]
["Pakistan"]
["Palau"]
["Panama"]
["Papua New Guinea"]
["Paraguay"]
["Peru"]
["Philippines"]
["Pitcairn"]
["Poland"]
["Portugal"]
["Puerto Rico"]
["Qatar"]
["Reunion"]
["Romania"]
["Russia"]
["Russian Federation"]
["Rwanda"]
["Saint Kitts and Nev"]
["Saint Lucia"]
["Saint Vincent and t"]
["Samoa (Independent)"]
["San Marino"]
["Sao Tome and Princi"]
["Saudi Arabia"]
["Scotland"]
["Senegal"]
["Serbia and Monteneg"]
["Seychelles"]
["Sierra Leone"]
["Singapore"]
["Slovakia"]
["Slovenia"]
["Solomon Islands"]
["Somalia"]
["South Africa"]
["South Georgia and t"]
["South Korea"]
["Spain"]
["Sri Lanka"]
["St. Helena"]
["St. Pierre and Miqu"]
["Suriname"]
["Svalbard and Jan Ma"]
["Swaziland"]
["Sweden"]
["Switzerland"]
["Taiwan"]
["Tajikistan"]
["Tanzania"]
["Thailand"]
["Togo"]
["Tokelau"]
["Tonga"]
["Trinidad"]
["Trinidad and Tobago"]
["Tunisia"]
["Turkey"]
["Turkmenistan"]
["Turks and Caicos Is"]
["Tuvalu"]
["Uganda"]
["Ukraine"]
["United Arab Emirate"]
["United Kingdom"]
["United States Minor"]
["Uruguay"]
["Uzbekistan"]
["Vanuatu"]
["Vatican City State"]
["Venezuela"]
["Viet Nam"]
["Virgin Islands (Bri"]
["Virgin Islands (U.S"]
["Wales"]
["Wallis and Futuna I"]
["Western Sahara"]
["Yemen"]
["Yugoslavia"]
["Zambia"]
["Zimbabwe"]

{"sheet":"CI_lookup","index":4,"n_rows":30,"n_cols":11,"rows_kept":30,"cut":false,"hidden":true,"merged":[[0,3,2,3],[0,0,2,0],[0,2,2,2],[0,4,0,6],[1,4,1,6]]}
["Fuel",null,"Pathway Description",null,"Carbon Intensity Values"]
[null,null,null,null,"(gCO2e/MJ)"]
[null,"Feedstock Type",null,null,"Direct Emissions","Land Use or Other Indirect Effect","Total"]
["Corn Ethanol","Corn","California average; 80% Midwest Average; 20% California; Dry Mill; Wet DGS; NG ",{"$f":"CONCATENATE(A4,\" - \",C4)","v":"Corn Ethanol - California average; 80% Midwest Average; 20% California; Dry Mill; Wet DGS; NG "},65.66,30,95.66,null,null,{"$f":"IF('Gasoline and its Substitutes'!#REF!=\"Ethanol\",D4,D22)","v":{"$error":"#REF!"}}]
["Corn Ethanol","Corn","California; Dry Mill; Dry DGS, NG","Corn Ethanol - California; Dry Mill; Dry DGS, NG",58.9,30,88.9,null,null,{"$f":"IF('Gasoline and its Substitutes'!#REF!=\"Ethanol\",D5,D23)","v":{"$error":"#REF!"}}]
["Corn Ethanol","Corn","California; Dry Mill; Dry DGS; 80% NG; 20% Biomass","Corn Ethanol - California; Dry Mill; Dry DGS; 80% NG; 20% Biomass",54.2,30,84.2,null,null,{"$f":"IF('Gasoline and its Substitutes'!#REF!=\"Ethanol\",D6,D24)","v":{"$error":"#REF!"}}]
["Corn Ethanol","Corn","California; Dry Mill; Wet DGS; 80% NG; 20% Biomass","Corn Ethanol - California; Dry Mill; Wet DGS; 80% NG; 20% Biomass",47.44,30,77.44,null,null,{"$f":"IF('Gasoline and its Substitutes'!#REF!=\"Ethanol\",D7,#REF!)","v":{"$error":"#REF!"}}]
["Corn Ethanol","Corn","California; Dry Mill; Wet DGS; NG","Corn Ethanol - California; Dry Mill; Wet DGS; NG",50.7,30,80.7,null,null,{"$f":"IF('Gasoline and its Substitutes'!#REF!=\"Ethanol\",D8,D25)","v":{"$error":"#REF!"}}]
["Corn Ethanol","Corn","Midwest average; 80% Dry Mill; 20% Wet Mill; Dry DGS","Corn Ethanol - Midwest average; 80% Dry Mill; 20% Wet Mill; Dry DGS",69.400000000000006,30,99.4,null,null,{"$f":"IF('Gasoline and its Substitutes'!#REF!=\"Ethanol\",D9,D26)","v":{"$error":"#REF!"}}]
["Corn Ethanol","Corn","Midwest; Dry Mill; Dry DGS, NG","Corn Ethanol - Midwest; Dry Mill; Dry DGS, NG",68.400000000000006,30,98.4,null,null,{"$f":"IF('Gasoline and its Substitutes'!#REF!=\"Ethanol\",D10,D27)","v":{"$error":"#REF!"}}]
["Corn Ethanol","Corn","Midwest; Dry Mill; Dry DGS; 80% NG; 20% Biomass","Corn Ethanol - Midwest; Dry Mill; Dry DGS; 80% NG; 20% Biomass",63.6,30,93.6,null,null,{"$f":"IF('Gasoline and its Substitutes'!#REF!=\"Ethanol\",D11,\"\")","v":{"$error":"#REF!"}},{"$f":"ISBLANK(J11)","v":false}]
["Corn Ethanol","Corn","Midwest; Dry Mill; Wet DGS; 80% NG; 20% Biomass","Corn Ethanol - Midwest; Dry Mill; Wet DGS; 80% NG; 20% Biomass",56.8,30,86.8,null,null,{"$f":"IF('Gasoline and its Substitutes'!#REF!=\"Ethanol\",D12,\"\")","v":{"$error":"#REF!"}}]
["Corn Ethanol","Corn","Midwest; Dry Mill; Wet DGS; NG","Corn Ethanol - Midwest; Dry Mill; Wet DGS; NG",60.1,30,90.1,null,null,{"$f":"IF('Gasoline and its Substitutes'!#REF!=\"Ethanol\",D13,\"\")","v":{"$error":"#REF!"}}]
["Corn Ethanol","Corn","Midwest; Wet Mill, 100% coal","Corn Ethanol - Midwest; Wet Mill, 100% coal",90.99,30,120.99,null,null,{"$f":"IF('Gasoline and its Substitutes'!#REF!=\"Ethanol\",D14,\"\")","v":{"$error":"#REF!"}}]
["Corn Ethanol","Corn","Midwest; Wet Mill, 100% NG","Corn Ethanol - Midwest; Wet Mill, 100% NG",64.52,30,94.52,null,null,{"$f":"IF('Gasoline and its Substitutes'!#REF!=\"Ethanol\",D15,\"\")","v":{"$error":"#REF!"}}]
["Corn Ethanol","Corn","Midwest; Wet Mill, 60% NG, 40% coal","Corn Ethanol - Midwest; Wet Mill, 60% NG, 40% coal",75.099999999999994,30,105.1,null,null,{"$f":"IF('Gasoline and its Substitutes'!#REF!=\"Ethanol\",D16,\"\")","v":{"$error":"#REF!"}}]
[null,"Corn",null,"NONE",null,null,"N/A"]
["Biodiesel","Midwest Soybeans","Pathways for conversion of Midwest soybeans to biodiesel (fatty acid methyl esters -FAME) ",{"$f":"CONCATENATE(A18,\" - \",C18)","v":"Biodiesel - Pathways for conversion of Midwest soybeans to biodiesel (fatty acid methyl esters -FAME) "},21.25,62,83.25,null,null,{"$f":"VLOOKUP('Gasoline and its Substitutes'!#REF!,$B$4:$G$31,3,FALSE)","v":{"$error":"#REF!"}}]
["Renewable Diesel","Midwest Soybeans","Pathways for conversion of Midwest soybeans to renewable diesel",{"$f":"CONCATENATE(A19,\" - \",C19)","v":"Renewable Diesel - Pathways for conversion of Midwest soybeans to renewable diesel"},20.16,62,82.16]
[null,"Midwest Soybeans",null,"NONE",null,null,"N/A"]
["Sugarcane Ethanol","Sugarcane","Brazilian sugarcane using average production processes",{"$f":"CONCATENATE(A21,\" - \",C21)","v":"Sugarcane Ethanol - Brazilian sugarcane using average production processes"},27.4,46,73.400000000000006,null,null,{"$f":"IF('Gasoline and its Substitutes'!#REF!=\"Ethanol\",D21,\"\")","v":{"$error":"#REF!"}}]
["Sugarcane Ethanol","Sugarcane","Brazilian sugarcane with average production process and electricity co-product credit",{"$f":"CONCATENATE(A22,\" - \",C22)","v":"Sugarcane Ethanol - Brazilian sugarcane with average production process and electricity co-product credit"},20.399999999999999,46,66.400000000000006,null,null,{"$f":"IF('Gasoline and its Substitutes'!#REF!=\"Ethanol\",D22,\"\")","v":{"$error":"#REF!"}}]
["Sugarcane Ethanol","Sugarcane","Brazilian sugarcane with average production process, mechanized harvesting and electricity co-product credit",{"$f":"CONCATENATE(A23,\" - \",C23)","v":"Sugarcane Ethanol - Brazilian sugarcane with average production process, mechanized harvesting and electricity co-product credit"},12.4,46,58.4,null,null,{"$f":"IF('Gasoline and its Substitutes'!#REF!=\"Ethanol\",D23,\"\")","v":{"$error":"#REF!"}}]
["Sugarcane Ethanol","Sugarcane","Brazilian sugarcane with average production process, mechanized harvesting and electricity co-product credit","NONE",12.4,46,"N/A",null,null,{"$f":"IF('Gasoline and its Substitutes'!#REF!=\"Ethanol\",D24,\"\")","v":{"$error":"#REF!"}}]
["Renewable Diesel","Tallow","Conversion of tallow to renewable diesel using higher energy use for rendering",{"$f":"CONCATENATE(A25,\" - \",C25)","v":"Renewable Diesel - Conversion of tallow to renewable diesel using higher energy use for rendering"},39.33,0,39.33]
["Renewable Diesel","Tallow","Conversion of tallow to renewable diesel using lower energy use for rendering",{"$f":"CONCATENATE(A26,\" - \",C26)","v":"Renewable Diesel - Conversion of tallow to renewable diesel using lower energy use for rendering"},19.649999999999999,0,19.649999999999999]
[null,"Tallow",null,"NONE",null,null,"N/A"]
["Biodiesel","Used Cooking Oil","Conversion of waste oils (Used Cooking Oil) to biodiesel (fatty acid methyl esters -FAME) where “cooking” is required",{"$f":"CONCATENATE(A28,\" - \",C28)","v":"Biodiesel - Conversion of waste oils (Used Cooking Oil) to biodiesel (fatty acid methyl esters -FAME) where “cooking” is required"},15.84,0,15.84,null,null,{"$f":"VLOOKUP('Gasoline and its Substitutes'!#REF!,$B$4:$G$31,3,FALSE)","v":{"$error":"#REF!"}}]
["Biodiesel","Used Cooking Oil","Conversion of waste oils (Used Cooking Oil) to biodiesel (fatty acid methyl esters -FAME) where “cooking” is not required",{"$f":"CONCATENATE(A29,\" - \",C29)","v":"Biodiesel - Conversion of waste oils (Used Cooking Oil) to biodiesel (fatty acid methyl esters -FAME) where “cooking” is not required"},11.76,0,11.76]
[null,"Used Cooking Oil",null,"NONE",null,null,"N/A"]

{"sheet":"CI Lookup Table","index":5,"n_rows":17,"n_cols":2,"rows_kept":17,"cut":false,"hidden":true,"merged":[]}
["Fuel Type","Carbon Intensity"]
["Gasoline",92.34]
["Diesel",91.53]
["Corn Ethanol (GREET default)",64.8]
["Corn Ethanol (wet mill, natural gas)",64.52]
["Corn Ethanol (wet mill, coal)",90.99]
["Corn Ethanol (dry mill, wet DGS, natural gas)",57]
["Sugarcane Ethanol",26.44]
["Farmed Tree Cellulosic Ethanol",15.54]
["Wheat Straw Cellulosic Ethanol",20.9]
["Forest Residue Cellulosic Ethanol",20.49]
["Mill Waste Cellulosic Ethanol",12.31]
["Soybean Renewable Diesel",21.7]
["Soybean Biodiesel (GREET default)",20]
["Canola Biodiesel",27.31]
["Used Cooking Oil (FAME) Biodiesel",10.3]
["Tallow Biodiesel",16.850000000000001]

{"sheet":"Diesel and its Substitutes","index":6,"n_rows":62,"n_cols":10,"rows_kept":62,"cut":false,"hidden":false,"merged":[[0,1,0,9],[2,0,10,0],[2,2,2,4],[4,2,4,3],[4,6,4,7],[6,8,6,9],[8,2,8,6],[11,0,20,0],[12,2,12,4],[14,2,14,3],[14,6,14,7],[16,8,16,9],[18,2,18,6],[20,2,20,5],[34,6,34,7],[36,8,36,9],[38,2,38,6],[21,0,30,0],[22,2,22,4],[24,2,24,3],[24,6,24,7],[26,8,26,9],[28,2,28,6],[30,2,30,5],[40,2,40,5],[31,0,40,0],[41,0,50,0],[42,2,42,4],[44,2,44,3],[32,2,32,4],[34,2,34,3],[44,6,44,7],[46,8,46,9],[48,2,48,6],[50,2,50,5],[49,3,49,8],[61,0,63,0],[61,2,61,8],[62,2,62,8],[63,2,63,8],[9,3,9,8],[19,3,19,8],[29,3,29,8],[39,3,39,8],[51,0,60,0],[52,2,52,4],[54,2,54,3],[54,6,54,7],[56,8,56,9],[58,2,58,6],[60,2,60,5],[59,3,59,8]]}
[null,"Oregon Department of Environmental Quality \nOregon Clean Fuels Program\nRegistration Form\n"]
[null,null,"Section 4. Diesel and its Substitutes"]
["SECTION 4.1",null,"Do you import/produce diesel?"]
[]
[null,null,"This is the default carbon intensity.",null,"N/A","gCO2e/MJ"]
[]
[null,null,"If available, how much did you import/produce last year? (in gallons)",null,"N/A","Gallons"]
[]
[null,null,"                                                                                                                                                                                                                                                                                              Select a physical pathway category that best matches the transportation route for the fuel. "]
[null,null,"Please list the producer(s) of the fuel:"]
[]
["SECTION 4.2"]
[null,null,"Do you import/produce soybean renewable diesel?"]
[]
[null,null,"If yes, is this default carbon intensity appropriate?",null,"N/A","gCO2e/MJ","If not, then what carbon intensity do you propose? Please attach all supporting documentation to this file.",null,null,"gCO2e/MJ"]
[]
[null,null,"If available, how much did you import/produce last year? (in gallons)",null,"N/A","Gallons"]
[]
[null,null,"                                                                                                                                                                                                                                                                                              Select a physical pathway category that best matches the transportation route for the fuel. "]
[null,null,"Please list the producer(s) of the fuel:"]
[]
["SECTION 4.3"]
[null,null,"Do you import/produce soybean biodiesel (GREET default)?"]
[]
[null,null,"If yes, is this default carbon intensity appropriate?",null,"N/A","gCO2e/MJ","If not, then what carbon intensity do you propose? Please attach all supporting documentation to this file.",null,null,"gCO2e/MJ"]
[]
[null,null,"If available, how much did you import/produce last year? (in gallons)",null,"N/A","Gallons"]
[]
[null,null,"                                                                                                                                                                                                                                                                                              Select a physical pathway category that best matches the transportation route for the fuel. "]
[null,null,"Please list the producer(s) of the fuel:"]
[]
["SECTION 4.4"]
[null,null,"Do you import/produce canola biodiesel?"]
[]
[null,null,"If yes, is this default carbon intensity appropriate?",null,"N/A","gCO2e/MJ","If not, then what carbon intensity do you propose? Please attach all supporting documentation to this file.",null,null,"gCO2e/MJ"]
[]
[null,null,"If available, how much did you import/produce last year? (in gallons)",null,"N/A","Gallons"]
[]
[null,null,"                                                                                                                                                                                                                                                                                              Select a physical pathway category that best matches the transportation route for the fuel. "]
[null,null,"Please list the producer(s) of the fuel:"]
[]
["SECTION 4.5"]
[null,null,"Do you import/produce used cooking oil (FAME) biodiesel?"]
[]
[null,null,"If yes, is this default carbon intensity appropriate?",null,"N/A","gCO2e/MJ","If not, then what carbon intensity do you propose? Please attach all supporting documentation to this file.",null,null,"gCO2e/MJ"]
[]
[null,null,"If available, how much did you import/produce last year? (in gallons)",null,"N/A","Gallons"]
[]
[null,null,"                                                                                                                                                                                                                                                                                              Select a physical pathway category that best matches the transportation route for the fuel. "]
[null,null,"Please list the producer(s) of the fuel:"]
[]
["SECTION 4.6"]
[null,null,"Do you import/produce tallow biodiesel?"]
[]
[null,null,"If yes, is this default carbon intensity appropriate?",null,"N/A","gCO2e/MJ","If not, then what carbon intensity do you propose? Please attach all supporting documentation to this file.",null,null,"gCO2e/MJ"]
[]
[null,null,"If available, how much did you import/produce last year? (in gallons)",null,"N/A","Gallons"]
[]
[null,null,"                                                                                                                                                                                                                                                                                              Select a physical pathway category that best matches the transportation route for the fuel. "]
[null,null,"Please list the producer(s) of the fuel:"]
[]
["SECTION 4.7",null,"Do you import/produce other diesel substitutes? Please describe each and include the proposed carbon intensity and the producer of the fuel. Please attach all applicable supporting documentation for the proposed carbon intensity."]